fUSD/lending_fUSD_20240425
["ID","MTS","AMOUNT","RATE_DAILY","PERIOD"]
[323465580,1714021832827,-278.19,0.00011648,2]
[323465581,1714021832836,-250.0,0.0001165,2]
[323465582,1714021832847,-278.19,0.00011651,2]
[323465583,1714021832857,-278.19,0.00011654,2]
[323465584,1714021832867,-278.19,0.00011657,2]
[323465585,1714021832877,-278.19,0.0001166,2]
[323465586,1714021832886,-278.19,0.00011663,2]
[323465587,1714021832896,-278.19,0.00011666,2]
[323465588,1714021832905,-278.19,0.00011669,2]
[323465589,1714021832915,-278.19,0.00011672,2]
[323465590,1714021832924,-278.19,0.00011675,2]
[323465591,1714021832933,-262.86,0.00011676,2]
[323465592,1714021832944,-158.19,0.00011676,2]
[323465593,1714021832954,-278.19,0.00011678,2]
[323465594,1714021832964,-278.19,0.00011681,2]
[323465595,1714021832973,-298.36,0.00011688,2]
[323465596,1714021832983,-583.91,0.00011728,2]
[323465597,1714021832992,-208.85,0.00011763,2]
[323465598,1714021833001,-2750.0,0.00012,2]
[323465599,1714021833011,-164.70595405,0.00012092,2]
[323465600,1714021833022,-1800.0,0.000121,4]
[323465601,1714021833032,-155.0,0.00012189,2]
[323465602,1714021833042,-1973.43346,0.0001219,2]
[323465603,1714021833053,-302.16,0.00012192,2]
[323465604,1714021833064,-1043.9,0.00012192,2]
[323465605,1714021833074,-587.23,0.00012192,2]
[323465606,1714021833085,-158.12,0.00012192,2]
[323465607,1714021833095,-162.85,0.00012192,2]
[323465608,1714021833104,-300.0,0.00012192,2]
[323465609,1714021833113,-388.32,0.00012192,2]
[323465610,1714021833123,-715.14,0.00012192,2]
[323465611,1714021833132,-150.0,0.00012192,2]
[323465612,1714021833142,-162.85,0.00012192,2]
[323465613,1714021833151,-350.51,0.00012192,2]
[323465614,1714021833160,-162.85,0.00012192,2]
[323465615,1714021833169,-150.0,0.00012192,2]
[323465616,1714021833179,-350.51,0.00012192,2]
[323465617,1714021833188,-350.51,0.00012192,2]
[323465618,1714021833198,-162.85,0.00012192,2]
[323465619,1714021833207,-162.85,0.00012192,2]
[323465620,1714021833217,-350.51,0.00012192,2]
[323465621,1714021833226,-164.04,0.00012192,2]
[323465622,1714021833235,-350.51,0.00012192,2]
[323465623,1714021833244,-350.51,0.00012192,2]
[323465624,1714021833254,-350.51,0.00012192,2]
[323465625,1714021833263,-3700.0,0.000122,4]
[323465626,1714021833273,-1994.86966475,0.0001228,2]
[323465627,1714021833282,-253.4008173,0.000123,2]
[323465628,1714021833291,-4862.1403654,0.000123,4]
[323465629,1714021833304,-637.8596346,0.000123,4]
[323465630,1714021833313,-502.0,0.00012328,2]
[323465631,1714021833321,-3185.07778658,0.00012334,2]
[323465632,1714021833331,-7400.0,0.000124,4]
[323465633,1714021833340,-9300.0,0.000125,4]
[323465634,1714021833349,-1800.0,0.000126,4]
[323465635,1714021833358,-150.0,0.00012617,2]
[323465636,1714021833366,-150.0,0.00012625,2]
[323465637,1714021833375,-150.0,0.00012628,2]
[323465638,1714021833384,-150.0,0.00012629,2]
[323465639,1714021833394,-150.0,0.00012631,2]
[323465640,1714021833402,-150.0,0.00012635,2]
[323465641,1714021833411,-150.0,0.00012642,2]
[323465642,1714021833420,-150.0,0.00012644,2]
[323465643,1714021833429,-150.0,0.00012646,2]
[323465644,1714021833439,-303.0,0.0001265,2]
[323465645,1714021833450,-150.0,0.00012656,2]
[323465646,1714021833460,-150.0,0.00012657,2]
[323465647,1714021833469,-150.0,0.00012665,2]
[323465648,1714021833479,-150.0,0.00012671,2]
[323465649,1714021833489,-150.0,0.00012679,2]
[323465650,1714021833499,-150.0,0.00012683,2]
[323465651,1714021833508,-150.0,0.0001269,2]
[323465652,1714021833517,-176.63609573,0.00012695,2]
[323465653,1714021833526,-150.0,0.00012697,2]
[323465654,1714021833535,-1800.0,0.000127,4]
[323465655,1714021833544,-150.0,0.00012702,2]
[323465656,1714021833553,-300.0,0.00012703,2]
[323465657,1714021833563,-150.0,0.00012703,2]
[323465658,1714021833572,-150.0,0.00012706,2]
[323465659,1714021833583,-150.0,0.00012717,2]
[323465660,1714021833592,-150.0,0.00012717,2]
[323465661,1714021833601,-150.0,0.00012718,2]
[323465662,1714021833610,-150.0,0.00012721,2]
[323465663,1714021833618,-150.0,0.00012722,2]
[323465664,1714021833629,-300.0,0.00012724,2]
[323465665,1714021833638,-150.0,0.00012725,2]
[323465666,1714021833647,-300.0,0.00012725,2]
[323465667,1714021833659,-151.04116384,0.00012727,2]
[323465668,1714021833668,-150.0,0.00012728,2]
[323465669,1714021833677,-1500.0,0.00012728,2]
[323465670,1714021833686,-150.0,0.00012729,2]
[323465671,1714021833696,-150.0,0.00012729,2]
[323465672,1714021833706,-300.0,0.00012732,2]
[323465673,1714021833715,-150.0,0.00012735,2]
[323465674,1714021833724,-150.0,0.00012736,2]
[323465675,1714021833735,-150.0,0.00012742,2]
[323465676,1714021833744,-150.0,0.00012743,2]
[323465677,1714021833753,-150.0,0.00012744,2]
[323465678,1714021833762,-150.0,0.00012747,2]
[323465679,1714021833772,-150.0,0.00012749,2]
[323465680,1714021833780,-12614.30813946,0.0001275,2]
[323465681,1714021833790,-150.0,0.00012751,2]
[323465682,1714021833799,-301.65649477,0.00012759,2]
[323465683,1714021833809,-150.0,0.0001276,2]
[323465684,1714021833818,-1500.0,0.00012762,2]
[323465685,1714021833830,-150.0,0.00012764,2]
[323465686,1714021833839,-282.37714389,0.00012765,2]
[323465687,1714021833848,-150.0,0.00012765,2]
[323465688,1714021833857,-1500.0,0.00012768,2]
[323465689,1714021833866,-150.0,0.00012769,2]
[323465690,1714021833877,-150.0,0.0001277,2]
[323465691,1714021833886,-150.0,0.00012772,2]
[323465692,1714021833895,-150.0,0.00012773,2]
[323465693,1714021833904,-150.0,0.00012774,2]
[323465694,1714021833913,-150.0,0.00012775,2]
[323465695,1714021833922,-300.0,0.00012779,2]
[323465696,1714021833931,-1500.0,0.00012779,2]
[323465697,1714021833941,-300.0,0.00012779,2]
[323465698,1714021833950,-300.0,0.0001278,2]
[323465699,1714021833959,-150.0,0.00012781,2]
[323465700,1714021833968,-1500.0,0.00012781,2]
[323465701,1714021833979,-1500.0,0.00012782,2]
[323465702,1714021833988,-150.0,0.00012783,2]
[323465703,1714021833998,-150.0,0.00012786,2]
[323465704,1714021834007,-300.0,0.00012788,2]
[323465705,1714021834016,-628.94465997,0.00012788,2]
[323465706,1714021834026,-1500.0,0.00012789,2]
[323465707,1714021834034,-1500.0,0.0001279,2]
[323465708,1714021834044,-150.0,0.00012791,2]
[323465709,1714021834053,-150.0,0.00012791,2]
[323465710,1714021834062,-150.0,0.00012794,2]
[323465711,1714021834071,-150.0,0.00012799,2]
[323465712,1714021834084,-1835.6857,0.000128,2]
[323465713,1714021834093,-1800.0,0.000128,4]
[323465714,1714021834102,-150.0,0.00012801,2]
[323465715,1714021834112,-150.0,0.00012801,2]
[323465716,1714021834121,-150.0,0.00012801,2]
[323465717,1714021834130,-150.0,0.00012803,2]
[323465718,1714021834140,-150.0,0.00012804,2]
[323465719,1714021834149,-150.0,0.00012804,2]
[323465720,1714021834158,-150.0,0.00012804,2]
[323465721,1714021834167,-150.0,0.00012806,2]
[323465722,1714021834176,-150.0,0.00012808,2]
[323465723,1714021834185,-1500.0,0.00012809,2]
[323465724,1714021834195,-150.0,0.00012816,2]
[323465725,1714021834204,-1500.0,0.00012816,2]
[323465726,1714021834213,-150.0,0.0001282,2]
[323465727,1714021834223,-1500.0,0.0001282,2]
[323465728,1714021834232,-150.0,0.00012821,2]
[323465729,1714021834241,-150.0,0.00012821,2]
[323465730,1714021834250,-1500.0,0.00012824,2]
[323465731,1714021834260,-150.0,0.00012826,2]
[323465732,1714021834269,-150.0,0.00012826,2]
[323465733,1714021834278,-150.0,0.00012826,2]
[323465734,1714021834288,-150.0,0.00012827,2]
[323465735,1714021834298,-150.0,0.0001283,2]
[323465736,1714021834307,-1500.0,0.00012831,2]
[323465737,1714021834316,-706.96946613,0.00012831,2]
[323465738,1714021834434,-571.01966468,0.00012831,2]
[323465739,1714021834445,-222.01086919,0.00012831,2]
[323465740,1714021834454,-137.59763081,0.00012834,2]
[323465741,1714021834465,-12.40236919,0.00012834,2]
[323465742,1714021834474,-347.48028902,0.00012834,2]
[323465743,1714021834493,-393.7042918,0.00012834,2]
[323465744,1714021834504,-586.85226721,0.00012834,2]
[323465745,1714021834515,-171.96315197,0.00012834,2]
[323465746,1714021834524,-99.99363387,0.00012835,2]
[323465747,1714021834535,-86.28682277,0.00012835,2]
[323465748,1714021834544,-150.0,0.0001284,2]
[323465749,1714021834553,-150.0,0.00012843,2]
[323465750,1714021834562,-150.0,0.00012845,2]
[323465751,1714021834571,-1500.0,0.00012846,2]
[323465752,1714021834581,-150.0,0.00012847,2]
[323465753,1714021834590,-150.0,0.00012848,2]
[323465754,1714021834600,-150.0,0.0001285,2]
[323465755,1714021834609,-26.90452693,0.00012851,2]
[323465759,1714021838067,-123.09547307,0.00012851,2]
[323465760,1714021838077,-150.0,0.00012852,2]
[323465761,1714021838092,-1203.85012692,0.00012852,2]
[323465762,1714021838173,-296.14987308,0.00012852,2]
[323465763,1714021838184,-150.0,0.00012855,2]
[323465764,1714021838193,-1500.0,0.00012858,2]
[323465765,1714021838203,-150.0,0.00012858,2]
[323465766,1714021838213,-150.0,0.00012862,2]
[323465767,1714021838223,-150.0,0.00012862,2]
[323465768,1714021838233,-150.0,0.00012865,2]
[323465769,1714021838242,-150.0,0.00012866,2]
[323465770,1714021838253,-150.0,0.00012868,2]
[323465771,1714021838264,-823.9535093,0.00012868,2]
[323465772,1714021838274,-150.0,0.00012869,2]
[323465773,1714021838284,-150.0,0.00012871,2]
[323465774,1714021838294,-1500.0,0.00012871,2]
[323465775,1714021838304,-150.0,0.00012874,2]
[323465776,1714021838313,-150.0,0.00012877,2]
[323465777,1714021838323,-1500.0,0.00012881,2]
[323465778,1714021838338,-1000.0,0.00012881,2]
[323465779,1714021838348,-500.0,0.00012881,2]
[323465780,1714021838358,-1500.0,0.00012883,2]
[323465781,1714021838369,-3380.3266,0.00012884,2]
[323465782,1714021838379,-1500.0,0.00012885,2]
[323465783,1714021838389,-164.70595405,0.00012886,2]
[323465784,1714021838399,-177.04248623,0.0001289,2]
[323465785,1714021838408,-472.9366656,0.0001289,2]
[323465786,1714021838418,-472.93666557,0.00012891,2]
[323465787,1714021838428,-472.93666557,0.00012892,2]
[323465788,1714021838439,-472.93666557,0.00012893,2]
[323465789,1714021838450,-472.93666557,0.00012894,2]
[323465790,1714021838461,-472.93666557,0.00012895,2]
[323465791,1714021838472,-472.93666557,0.00012895,2]
[323465792,1714021838483,-472.93666557,0.00012896,2]
[323465793,1714021838494,-472.93666557,0.00012897,2]
[323465794,1714021838505,-472.93666557,0.00012898,2]
[323465795,1714021838516,-472.93666557,0.00012899,2]
[323465796,1714021838528,-366.01338565,0.000129,2]
[323465797,1714021838538,-1155.08655255,0.000129,2]
[323465799,1714021838551,-926.07722536,0.000129,2]
[323465801,1714021838563,-1813.9176003,0.000129,2]
[323465803,1714021838576,-6104.91862179,0.000129,2]
[323465805,1714021838590,-472.93666557,0.000129,2]
[323465808,1714021838600,-161.5742,0.000129,2]
[323465809,1714021838611,-257.0,0.000129,2]
[323465810,1714021838621,-1800.0,0.000129,4]
[323465811,1714021838631,-150.0,0.00012904,2]
[323465812,1714021838641,-150.0,0.00012908,2]
[323465813,1714021838651,-1500.0,0.00012915,2]
[323465814,1714021838666,-1500.0,0.00012915,2]
[323465815,1714021838678,-1500.0,0.00012917,2]
[323465816,1714021838688,-150.59142456,0.00012918,2]
[323465817,1714021838697,-1500.0,0.0001292,2]
[323465818,1714021838707,-150.0,0.0001292,2]
[323465819,1714021838716,-150.53664079,0.00012926,2]
[323465820,1714021838726,-300.0,0.00012933,2]
[323465821,1714021838737,-1500.0,0.00012935,2]
[323465822,1714021838748,-1500.0,0.00012937,2]
[323465823,1714021838759,-1500.0,0.0001294,2]
[323465824,1714021838768,-1500.0,0.00012944,2]
[323465825,1714021838779,-1500.0,0.00012952,2]
[323465826,1714021838791,-1500.0,0.00012954,2]
[323465827,1714021838801,-1500.0,0.00012961,2]
[323465828,1714021838812,-283.22781021,0.00012962,2]
[323465829,1714021838823,-1500.0,0.00012965,2]
[323465830,1714021838835,-1500.0,0.00012971,2]
[323465831,1714021838845,-4591.48175917,0.00012972,2]
[323465832,1714021838857,-1028.0682874,0.00012974,2]
[323465833,1714021838868,-3527.2725002,0.00012974,2]
[323465834,1714021838878,-290.246006,0.00012974,2]
[323465835,1714021838888,-301.06202141,0.00012975,2]
[323465836,1714021838900,-216.0675251,0.00012975,2]
[323465837,1714021838911,-327.12296361,0.00012977,2]
[323465838,1714021838922,-500.0,0.00012983,2]
[323465839,1714021838933,-635.48,0.00012983,2]
[323465840,1714021838944,-500.0,0.00012983,2]
[323465841,1714021838955,-520.22515516,0.00012983,2]
[323465842,1714021838966,-4000.0,0.00012983,2]
[323465843,1714021838976,-16282.69495885,0.00012983,2]
[323465844,1714021838987,-1181.06356355,0.00012983,2]
[323465845,1714021838999,-571.63572527,0.00012983,7]
[323465846,1714021839010,-196.66962468,0.00012984,2]
[323465847,1714021839020,-200.0,0.00012984,10]
[323465848,1714021839031,-295.51512612,0.00012984,2]
[323465849,1714021839042,-505.62699539,0.00012984,2]
[323465850,1714021839053,-500.0,0.00012984,2]
[323465851,1714021839063,-511.62687395,0.00012984,2]
[323465852,1714021839074,-500.0,0.00012984,2]
[323465853,1714021839086,-503.77002865,0.00012984,2]
[323465854,1714021839096,-501.50007297,0.00012984,2]
[323465855,1714021839106,-502.9041695,0.00012984,2]
[323465856,1714021839116,-500.0,0.00012984,2]
[323465857,1714021839128,-501.34659272,0.00012984,2]
[323465858,1714021839138,-508.64678204,0.00012984,2]
[323465859,1714021839147,-500.0,0.00012984,2]
[323465860,1714021839158,-500.79304351,0.00012984,2]
[323465861,1714021839168,-295.42729781,0.00012984,2]
[323465862,1714021839178,-500.0,0.00012984,2]
[323465863,1714021839188,-500.0,0.00012984,2]
[323465864,1714021839200,-479.33611811,0.00012984,2]
[323465865,1714021839211,-500.0,0.00012984,2]
[323465866,1714021839220,-500.0,0.00012984,2]
[323465867,1714021839229,-500.0,0.00012984,2]
[323465868,1714021839240,-305.65898772,0.00012984,2]
[323465869,1714021839249,-500.0,0.00012984,2]
[323465870,1714021839259,-516.14393025,0.00012984,2]
[323465871,1714021839270,-500.0,0.00012984,2]
[323465872,1714021839280,-504.59506941,0.00012984,2]
[323465873,1714021839291,-500.0,0.00012984,2]
[323465874,1714021839302,-500.0,0.00012984,2]
[323465875,1714021839311,-513.6123896,0.00012984,2]
[323465876,1714021839322,-154.3270309,0.00012984,2]
[323465877,1714021839333,-500.0,0.00012984,2]
[323465878,1714021839344,-500.0,0.00012984,2]
[323465879,1714021839353,-500.0,0.00012984,2]
[323465880,1714021839364,-500.0,0.00012984,2]
[323465881,1714021839375,-627.14272384,0.00012984,2]
[323465882,1714021839386,-500.0,0.00012984,2]
[323465883,1714021839395,-500.0,0.00012984,2]
[323465884,1714021839406,-508.41690295,0.00012984,2]
[323465885,1714021839417,-500.0,0.00012984,2]
[323465886,1714021839429,-555.91,0.00012984,2]
[323465887,1714021839439,-500.0,0.00012984,2]
[323465888,1714021839450,-318.94848103,0.00012984,2]
[323465889,1714021839462,-500.0,0.00012984,2]
[323465890,1714021839472,-500.0,0.00012984,2]
[323465891,1714021839483,-500.0,0.00012984,2]
[323465892,1714021839494,-500.0,0.00012984,2]
[323465893,1714021839504,-500.0,0.00012984,2]
[323465894,1714021839514,-500.0,0.00012984,2]
[323465895,1714021839525,-500.0,0.00012984,2]
[323465896,1714021839535,-500.0,0.00012984,2]
[323465897,1714021839545,-503.78081613,0.00012984,2]
[323465898,1714021839555,-500.0,0.00012984,2]
[323465899,1714021839564,-500.0,0.00012984,2]
[323465900,1714021839575,-500.0,0.00012984,2]
[323465901,1714021839587,-500.0,0.00012984,2]
[323465902,1714021839598,-507.40532112,0.00012984,2]
[323465903,1714021839609,-500.0,0.00012984,2]
[323465904,1714021839620,-500.0,0.00012984,2]
[323465905,1714021839631,-542.59678638,0.00012984,2]
[323465906,1714021839642,-500.0,0.00012984,2]
[323465907,1714021839654,-500.0,0.00012984,2]
[323465908,1714021839667,-500.0,0.00012984,2]
[323465909,1714021839678,-500.0,0.00012984,2]
[323465910,1714021839690,-500.0,0.00012984,2]
[323465911,1714021839700,-500.0,0.00012984,2]
[323465912,1714021839710,-500.0,0.00012984,2]
[323465913,1714021839719,-500.0,0.00012984,2]
[323465914,1714021839729,-500.0,0.00012984,2]
[323465915,1714021839739,-500.0,0.00012984,2]
[323465917,1714021839933,-500.0,0.00012984,2]
[323465918,1714021839948,-500.0,0.00012984,2]
[323465919,1714021839957,-507.68826002,0.00012984,2]
[323465920,1714021839967,-551.24267006,0.00012984,2]
[323465921,1714021839977,-337.66357995,0.00012984,2]
[323465922,1714021839987,-500.0,0.00012984,2]
[323465923,1714021839996,-440.38148379,0.00012984,2]
[323465924,1714021840005,-500.0,0.00012984,2]
[323465925,1714021840014,-500.0,0.00012984,2]
[323465926,1714021840024,-500.0,0.00012984,2]
[323465927,1714021840033,-500.95658751,0.00012984,2]
[323465928,1714021840042,-500.0,0.00012984,2]
[323465929,1714021840051,-500.0,0.00012984,2]
[323465930,1714021840060,-512.86627891,0.00012984,2]
[323465931,1714021840070,-261.06226619,0.00012984,2]
[323465932,1714021840079,-504.22747491,0.00012984,2]
[323465933,1714021840090,-526.29992962,0.00012984,2]
[323465934,1714021840100,-500.0,0.00012984,2]
[323465935,1714021840109,-504.69080472,0.00012984,2]
[323465936,1714021840118,-434.86164571,0.00012984,2]
[323465937,1714021840128,-500.0,0.00012984,2]
[323465938,1714021840137,-500.0,0.00012984,2]
[323465939,1714021840147,-500.0,0.00012984,2]
[323465940,1714021840157,-500.0,0.00012984,2]
[323465941,1714021840166,-500.0,0.00012984,2]
[323465942,1714021840175,-500.0,0.00012984,2]
[323465943,1714021840184,-500.0,0.00012984,2]
[323465944,1714021840193,-500.0,0.00012984,2]
[323465945,1714021840202,-507.77593641,0.00012984,2]
[323465946,1714021840211,-500.0,0.00012984,2]
[323465947,1714021840220,-500.0,0.00012984,2]
[323465948,1714021840229,-500.0,0.00012984,2]
[323465949,1714021840238,-1591.83,0.00012984,2]
[323465950,1714021840247,-500.0,0.00012984,2]
[323465951,1714021840257,-500.0,0.00012984,2]
[323465952,1714021840266,-589.26,0.00012984,2]
[323465953,1714021840276,-506.58524086,0.00012984,2]
[323465954,1714021840285,-500.0,0.00012984,2]
[323465955,1714021840294,-500.0,0.00012984,2]
[323465956,1714021840303,-500.0,0.00012984,2]
[323465957,1714021840313,-500.0,0.00012984,2]
[323465958,1714021840323,-500.0,0.00012984,2]
[323465959,1714021840333,-500.0,0.00012984,2]
[323465960,1714021840343,-292.64971489,0.00012984,2]
[323465961,1714021840353,-500.0,0.00012984,2]
[323465962,1714021840362,-500.0,0.00012984,2]
[323465963,1714021840372,-424.26607273,0.00012984,2]
[323465964,1714021840382,-500.0,0.00012984,2]
[323465965,1714021840391,-500.0,0.00012984,2]
[323465966,1714021840400,-500.0,0.00012984,2]
[323465967,1714021840410,-500.0,0.00012984,2]
[323465968,1714021840419,-500.0,0.00012984,2]
[323465969,1714021840428,-336.47492282,0.00012984,2]
[323465970,1714021840437,-578.26005985,0.00012984,2]
[323465971,1714021840446,-500.0,0.00012984,2]
[323465972,1714021840455,-500.0,0.00012984,2]
[323465973,1714021840464,-617.59193017,0.00012984,2]
[323465974,1714021840473,-1318.38,0.00012984,2]
[323465975,1714021840482,-500.0,0.00012984,2]
[323465976,1714021840491,-500.0,0.00012984,2]
[323465977,1714021840500,-500.0,0.00012984,2]
[323465978,1714021840509,-500.0,0.00012984,2]
[323465979,1714021840518,-500.0,0.00012984,2]
[323465980,1714021840526,-1456.36,0.00012984,2]
[323465981,1714021840535,-500.0,0.00012984,2]
[323465982,1714021840544,-500.0,0.00012984,2]
[323465983,1714021840553,-151.0,0.00012984,2]
[323465984,1714021840562,-245.11358384,0.00012984,2]
[323465985,1714021840571,-500.0,0.00012984,2]
[323465986,1714021840580,-500.0,0.00012984,2]
[323465987,1714021840590,-513.26783564,0.00012984,2]
[323465988,1714021840600,-722.78,0.00012984,2]
[323465989,1714021840609,-501.24466264,0.00012984,2]
[323465990,1714021840620,-416.86428784,0.00012984,2]
[323465991,1714021840631,-500.0,0.00012984,2]
[323465992,1714021840641,-500.0,0.00012984,2]
[323465993,1714021840651,-916.66,0.00012984,2]
[323465994,1714021840664,-1514.35,0.00012984,2]
[323465995,1714021840674,-629.92,0.00012984,2]
[323465996,1714021840683,-1715.05,0.00012984,2]
[323465997,1714021840692,-2978.55,0.00012984,2]
[323465999,1714021840702,-500.0,0.00012984,2]
[323466001,1714021840711,-500.0,0.00012984,2]
[323466003,1714021840720,-500.0,0.00012984,2]
[323466004,1714021840729,-500.0,0.00012984,2]
[323466005,1714021840738,-500.0,0.00012984,2]
[323466006,1714021840747,-500.0,0.00012984,2]
[323466009,1714021840756,-474.57054238,0.00012984,2]
[323466011,1714021840765,-1808.37,0.00012984,2]
[323466013,1714021840776,-806.99,0.00012984,2]
[323466014,1714021840786,-500.0,0.00012984,2]
[323466016,1714021840796,-500.0,0.00012984,2]
[323466018,1714021840807,-5238.67,0.00012984,2]
[323466021,1714021840817,-376.45501078,0.00012984,2]
[323466022,1714021840827,-500.0,0.00012984,2]
[323466024,1714021840838,-571.66,0.00012984,2]
[323466027,1714021840848,-500.0,0.00012984,2]
[323466029,1714021840858,-553.99247748,0.00012984,2]
[323466031,1714021840869,-517.58,0.00012984,2]
[323466033,1714021840878,-528.49861833,0.00012984,2]
[323466034,1714021840888,-500.0,0.00012984,2]
[323466037,1714021840899,-341.25801802,0.00012984,2]
[323466039,1714021840909,-566.92,0.00012984,2]
[323466040,1714021840920,-230.279837,0.00012985,2]
[323466042,1714021840930,-230.279837,0.00012985,2]
[323466044,1714021840939,-151.0,0.00012985,2]
[323466047,1714021840949,-455153.12204614,0.00012985,2]
[323466048,1714021840961,-259.142396,0.00012986,2]
[323466049,1714021840970,-259.142396,0.00012986,2]
[323466050,1714021840979,-230.279837,0.00012986,2]
[323466051,1714021840988,-230.279837,0.00012986,2]
[323466052,1714021840997,-151.0,0.00012986,2]
[323466053,1714021841007,-148050.0,0.00012986,2]
[323466054,1714021841015,-717.0,0.00012986,2]
[323466055,1714021841024,-250000.0,0.0001299,2]
[323466056,1714021841034,-259.142396,0.0001299,2]
[323466057,1714021841043,-259.142396,0.0001299,2]
[323466058,1714021841052,-230.279837,0.0001299,2]
[323466059,1714021841061,-230.279837,0.0001299,2]
[323466060,1714021841070,-151.0,0.0001299,2]
[323466061,1714021841081,-983.0925889,0.00012991,2]
[323466062,1714021841094,-938.1168904,0.00012991,2]
[323466063,1714021841103,-893.1411919,0.00012991,2]
[323466064,1714021841112,-188.26552868,0.00012991,2]
[323466065,1714021841360,-346.411053,0.00012991,2]
[323466066,1714021841604,-313.48891172,0.00012991,2]
[323466067,1714021841615,-803.1897949,0.00012991,2]
[323466068,1714021841626,-85.25311578,0.00012991,2]
[323466069,1714021841786,-2828.02318082,0.00012991,2]
[323466070,1714021841799,-406.70648982,0.00012991,2]
[323466071,1714021841811,-36.19530078,0.00012991,2]
[323466072,1714021841822,-784.83269922,0.00012991,2]
[323466073,1714021841837,-442.48074201,0.00012991,2]
[323466074,1714021841852,-644.06,0.00012991,2]
[323466075,1714021841872,-1313.71023297,0.00012991,2]
[323466076,1714021841882,-16.02976703,0.00012991,2]
[323466083,1714021843473,-200.0,0.00012564,2]
[323466084,1714021843482,-92.5,0.00012991,2]
[323466087,1714021846273,-150.01,0.00012984,2]
[323466088,1714021846283,-2905.45949417,0.00012991,2]
[323466089,1714021846292,-2842.8948481,0.00012991,2]
[323466090,1714021846301,-2671.8004351,0.00012991,2]
[323466091,1714021846310,-281.447421,0.00012991,2]
[323466092,1714021846320,-272.6488359,0.00012991,2]
[323466093,1714021846329,-263.8502509,0.00012991,2]
[323466094,1714021846339,-255.0516659,0.00012991,2]
[323466095,1714021846349,-246.2530809,0.00012991,2]
[323466096,1714021846358,-37821.57085041,0.00012997,2]
[323466097,1714021846368,-262.19707218,0.00012997,2]
[323466098,1714021846377,-230.279837,0.00012997,2]
[323466099,1714021846386,-230.279837,0.00012997,2]
[323466100,1714021846395,-211.23476435,0.00012998,2]
[323466101,1714021846404,-52973.45950782,0.00012998,2]
[323466102,1714021846415,-1830.54341999,0.00012998,2]
[323466114,1714021846807,-6533.88078601,0.00012998,2]
[323466118,1714022422534,-405.44054752,9.806e-05,2]
[323466119,1714022422560,-183.36,9.807e-05,2]
[323466120,1714022422584,-4911.19945248,0.0001,2]
[323466121,1714022498878,-183.36,9.572e-05,2]
[323466122,1714022551039,-399.3527009,9.572e-05,2]
[323466123,1714022551061,-88.80054752,0.0001,2]
[323466124,1714022551081,-782.83205117,0.0001,2]
[323466125,1714022551102,-525.51,0.00010089,2]
[323466126,1714022551123,-150.0,0.00010099,2]
[323466127,1714022551144,-30000.0,0.000101,2]
[323466128,1714022563240,399.3527009,9.572e-05,2]
[323466129,1714022583239,399.3527009,9.572e-05,2]
[323466130,1714022599296,250.03227515,9.572e-05,2]
[323466136,1714023029456,461.81720701,9.572e-05,2]
[323466142,1714023032221,-1226.82673284,0.00010054,2]
[323466143,1714023032277,-382.00503233,0.00010054,2]
[323466144,1714023032286,-539.83314702,0.00010055,2]
[323466145,1714023032295,-477.00504961,0.00010056,2]